[Event "Titled Tuesday Blitz February 07 Early 2023"]
[White "Matinian, Nikita"]
[Black "Mesa Cruz, Juan Carlos"]
[WhiteFideId "24129100"]
[BlackFideId "6423400"]
[WhiteElo "2407"]
[BlackElo "2122"]
[Result "0-1"]
[Round "02"]
[TimeControl "180+2"]
[Date "2023.02.07"]
[WhiteClock "0:00:07"]
[BlackClock "0:00:17"]

1. e4 {[%clk 0:03:00]}  c5 {[%clk 0:02:58]} 2. Nc3 {[%clk 0:02:56]}  Nc6 {[%clk 0:02:58]} 3. Bb5 {[%clk 0:02:56]}  Nd4 {[%clk 0:02:58]} 4. Nf3 {[%clk 0:02:57]}  g6 {[%clk 0:02:56]} 5. O-O {[%clk 0:02:56]}  Bg7 {[%clk 0:02:56]} 6. e5 {[%clk 0:02:52]}  a6 {[%clk 0:02:54]} 7. Bc4 {[%clk 0:02:49]}  Nh6 {[%clk 0:02:41]} 8. d3 {[%clk 0:02:45]}  Nhf5 {[%clk 0:02:40]} 9. Nxd4 {[%clk 0:02:37]}  cxd4 {[%clk 0:02:35]} 10. Nd5 {[%clk 0:02:36]}  e6 {[%clk 0:02:23]} 11. Nf6+ {[%clk 0:02:30]}  Bxf6 {[%clk 0:02:23]} 12. exf6 {[%clk 0:02:31]}  Qxf6 {[%clk 0:02:24]} 13. Qf3 {[%clk 0:02:27]}  Qe7 {[%clk 0:02:04]} 14. Bb3 {[%clk 0:01:57]}  O-O {[%clk 0:01:59]} 15. g4 {[%clk 0:01:54]}  Ng7 {[%clk 0:01:43]} 16. Bh6 {[%clk 0:01:50]}  d6 {[%clk 0:01:41]} 17. Rae1 {[%clk 0:01:48]}  e5 {[%clk 0:01:40]} 18. Qg3 {[%clk 0:01:45]}  Be6 {[%clk 0:01:25]} 19. f4 {[%clk 0:01:45]}  Bxb3 {[%clk 0:01:24]} 20. axb3 {[%clk 0:01:46]}  f6 {[%clk 0:01:24]} 21. Re2 {[%clk 0:01:32]}  Rf7 {[%clk 0:01:19]} 22. h4 {[%clk 0:01:29]}  Re8 {[%clk 0:01:17]} 23. f5 {[%clk 0:01:09]}  d5 {[%clk 0:00:57]} 24. fxg6 {[%clk 0:01:07]}  hxg6 {[%clk 0:00:57]} 25. h5 {[%clk 0:00:41]}  gxh5 {[%clk 0:00:38]} 26. Rh2 {[%clk 0:00:35]}  Qe6 {[%clk 0:00:33]} 27. gxh5 {[%clk 0:00:29]}  f5 {[%clk 0:00:32]} 28. Bg5 {[%clk 0:00:18]}  f4 {[%clk 0:00:31]} 29. Qf3 {[%clk 0:00:18]}  Kh7 {[%clk 0:00:28]} 30. Kh1 {[%clk 0:00:17]}  Nf5 {[%clk 0:00:29]} 31. Rg2 {[%clk 0:00:15]}  Ne3 {[%clk 0:00:22]} 32. Rfg1 {[%clk 0:00:12]}  Nxg2 {[%clk 0:00:21]} 33. Rxg2 {[%clk 0:00:13]}  Rg8 {[%clk 0:00:19]} 34. Qf2 {[%clk 0:00:08]}  Rfg7 {[%clk 0:00:18]} 35. Qh4 {[%clk 0:00:07]}  Qf5 {[%clk 0:00:17]} 0-1


[Site "https://www.chess.com"]

[Event "Titled Tuesday Blitz February 07 Early 2023"]
[White "Gutkin, Ilya"]
[Black "Skliarov, Viktor"]
[WhiteFideId "16203470"]
[BlackFideId "14106736"]
[WhiteElo "2273"]
[BlackElo "2383"]
[Result "1-0"]
[Round "02"]
[TimeControl "180+2"]
[Date "2023.02.07"]
[WhiteClock "0:00:04"]
[BlackClock "0:00:07"]

1. Nf3 {[%clk 0:03:00]}  g6 {[%clk 0:03:00]} 2. d4 {[%clk 0:03:00]}  Bg7 {[%clk 0:03:00]} 3. e4 {[%clk 0:03:00]}  c6 {[%clk 0:02:59]} 4. c3 {[%clk 0:03:00]}  d5 {[%clk 0:02:59]} 5. Nbd2 {[%clk 0:02:57]}  dxe4 {[%clk 0:02:54]} 6. Nxe4 {[%clk 0:02:57]}  Nf6 {[%clk 0:02:55]} 7. Nxf6+ {[%clk 0:02:57]}  Bxf6 {[%clk 0:02:55]} 8. Bh6 {[%clk 0:02:56]}  Bg4 {[%clk 0:02:50]} 9. Be2 {[%clk 0:02:55]}  Qb6 {[%clk 0:02:49]} 10. Qd2 {[%clk 0:02:52]}  Nd7 {[%clk 0:02:46]} 11. h3 {[%clk 0:02:51]}  Bxf3 {[%clk 0:02:46]} 12. Bxf3 {[%clk 0:02:50]}  e6 {[%clk 0:02:46]} 13. O-O {[%clk 0:02:47]}  O-O-O {[%clk 0:02:46]} 14. a4 {[%clk 0:02:46]}  a6 {[%clk 0:02:28]} 15. b4 {[%clk 0:02:44]}  Rhg8 {[%clk 0:02:04]} 16. Be3 {[%clk 0:02:40]}  Qc7 {[%clk 0:01:53]} 17. b5 {[%clk 0:02:34]}  cxb5 {[%clk 0:01:38]} 18. axb5 {[%clk 0:02:34]}  a5 {[%clk 0:01:38]} 19. c4 {[%clk 0:02:23]}  b6 {[%clk 0:01:27]} 20. Qc2 {[%clk 0:02:14]}  e5 {[%clk 0:01:24]} 21. Qe4 {[%clk 0:01:23]}  exd4 {[%clk 0:01:22]} 22. Qa8+ {[%clk 0:01:23]}  Nb8 {[%clk 0:01:20]} 23. Bg4+ {[%clk 0:01:19]}  Rd7 {[%clk 0:01:17]} 24. Bxd7+ {[%clk 0:01:14]}  Qxd7 {[%clk 0:01:17]} 25. Bf4 {[%clk 0:01:15]}  Qb7 {[%clk 0:01:16]} 26. Qxb8+ {[%clk 0:01:01]}  Qxb8 {[%clk 0:01:15]} 27. Bxb8 {[%clk 0:01:02]}  Kxb8 {[%clk 0:01:16]} 28. Rfd1 {[%clk 0:00:25]}  Rc8 {[%clk 0:01:15]} 29. Ra4 {[%clk 0:00:22]}  Kb7 {[%clk 0:01:12]} 30. Kf1 {[%clk 0:00:22]}  Rc5 {[%clk 0:01:10]} 31. Ke2 {[%clk 0:00:21]}  Kc7 {[%clk 0:01:10]} 32. Kd3 {[%clk 0:00:21]}  Kd7 {[%clk 0:01:10]} 33. Ra2 {[%clk 0:00:21]}  Rg5 {[%clk 0:01:09]} 34. g3 {[%clk 0:00:20]}  h5 {[%clk 0:01:06]} 35. h4 {[%clk 0:00:20]}  Rf5 {[%clk 0:01:02]} 36. Re1 {[%clk 0:00:20]}  Rf3+ {[%clk 0:01:01]} 37. Ke4 {[%clk 0:00:19]}  Rc3 {[%clk 0:00:59]} 38. Kd5 {[%clk 0:00:20]}  d3 {[%clk 0:00:49]} 39. Rd1 {[%clk 0:00:19]}  Rc2 {[%clk 0:00:40]} 40. Rxc2 {[%clk 0:00:18]}  dxc2 {[%clk 0:00:41]} 41. Rc1 {[%clk 0:00:19]}  a4 {[%clk 0:00:41]} 42. Rxc2 {[%clk 0:00:19]}  a3 {[%clk 0:00:41]} 43. Ra2 {[%clk 0:00:16]}  Bb2 {[%clk 0:00:41]} 44. c5 {[%clk 0:00:16]}  bxc5 {[%clk 0:00:41]} 45. Kxc5 {[%clk 0:00:17]}  Kc7 {[%clk 0:00:41]} 46. b6+ {[%clk 0:00:15]}  Kb7 {[%clk 0:00:40]} 47. Kb5 {[%clk 0:00:16]}  f6 {[%clk 0:00:34]} 48. f3 {[%clk 0:00:15]}  g5 {[%clk 0:00:29]} 49. f4 {[%clk 0:00:12]}  gxh4 {[%clk 0:00:26]} 50. gxh4 {[%clk 0:00:12]}  f5 {[%clk 0:00:25]} 51. Kc5 {[%clk 0:00:10]}  Kb8 {[%clk 0:00:24]} 52. Kc6 {[%clk 0:00:10]}  Kc8 {[%clk 0:00:22]} 53. Kd5 {[%clk 0:00:04]}  Kb7 {[%clk 0:00:22]} 54. Ke6 {[%clk 0:00:04]}  Kxb6 {[%clk 0:00:22]} 55. Kxf5 {[%clk 0:00:05]}  Kb5 {[%clk 0:00:23]} 56. Kg5 {[%clk 0:00:05]}  Kb4 {[%clk 0:00:22]} 57. Kxh5 {[%clk 0:00:06]}  Kb3 {[%clk 0:00:22]} 58. Rxa3+ {[%clk 0:00:06]}  Kxa3 {[%clk 0:00:23]} 59. Kg6 {[%clk 0:00:06]}  Kb4 {[%clk 0:00:17]} 60. f5 {[%clk 0:00:07]}  Kc5 {[%clk 0:00:18]} 61. f6 {[%clk 0:00:07]}  Kd6 {[%clk 0:00:17]} 62. Kf7 {[%clk 0:00:03]}  Kd7 {[%clk 0:00:10]} 63. h5 {[%clk 0:00:03]}  Bc1 {[%clk 0:00:11]} 64. Kg6 {[%clk 0:00:02]}  Ke8 {[%clk 0:00:10]} 65. Kg7 {[%clk 0:00:02]}  Bb2 {[%clk 0:00:05]} 66. h6 {[%clk 0:00:03]}  Bxf6+ {[%clk 0:00:04]} 67. Kxf6 {[%clk 0:00:03]}  Kf8 {[%clk 0:00:05]} 68. h7 {[%clk 0:00:03]}  Ke8 {[%clk 0:00:06]} 69. h8=Q+ {[%clk 0:00:04]}  Kd7 {[%clk 0:00:07]} 70. Qf8 {[%clk 0:00:04]} 1-0


[Site "https://www.chess.com"]

[Event "Titled Tuesday Blitz February 07 Early 2023"]
[White "Lopez Del Alamo, Antonio"]
[Black "Iskusnyh, Sergei"]
[WhiteFideId "2227339"]
[BlackFideId "4120027"]
[WhiteElo "2280"]
[BlackElo "2440"]
[Result "0-1"]
[Round "02"]
[TimeControl "180+2"]
[Date "2023.02.07"]
[WhiteClock "0:02:22"]
[BlackClock "0:02:16"]

1. e4 {[%clk 0:03:00]}  e6 {[%clk 0:02:58]} 2. d3 {[%clk 0:02:57]}  c5 {[%clk 0:02:57]} 3. Nf3 {[%clk 0:02:57]}  Nc6 {[%clk 0:02:57]} 4. g3 {[%clk 0:02:57]}  g6 {[%clk 0:02:57]} 5. Bg2 {[%clk 0:02:54]}  Bg7 {[%clk 0:02:57]} 6. O-O {[%clk 0:02:53]}  Nge7 {[%clk 0:02:54]} 7. c3 {[%clk 0:02:52]}  e5 {[%clk 0:02:50]} 8. a3 {[%clk 0:02:51]}  d6 {[%clk 0:02:47]} 9. b4 {[%clk 0:02:50]}  O-O {[%clk 0:02:46]} 10. b5 {[%clk 0:02:39]}  Na5 {[%clk 0:02:45]} 11. c4 {[%clk 0:02:38]}  f5 {[%clk 0:02:41]} 12. Nc3 {[%clk 0:02:33]}  f4 {[%clk 0:02:40]} 13. Nd5 {[%clk 0:02:30]}  Nxd5 {[%clk 0:02:39]} 14. exd5 {[%clk 0:02:28]}  e4 {[%clk 0:02:18]} 15. Bxf4 {[%clk 0:02:22]}  exf3 {[%clk 0:02:16]} 0-1


[Site "https://www.chess.com"]

[Event "Titled Tuesday Blitz February 07 Early 2023"]
[White "Kozak, Adam"]
[Black "Mirzanurov, Bulat"]
[WhiteFideId "753246"]
[BlackFideId "4184521"]
[WhiteElo "2572"]
[BlackElo "2232"]
[Result "0-1"]
[Round "02"]
[TimeControl "180+2"]
[Date "2023.02.07"]
[WhiteClock "0:00:01"]
[BlackClock "0:00:02"]

1. e4 {[%clk 0:02:54]}  c5 {[%clk 0:02:59]} 2. Nf3 {[%clk 0:02:54]}  d6 {[%clk 0:02:59]} 3. d4 {[%clk 0:02:54]}  cxd4 {[%clk 0:03:00]} 4. Nxd4 {[%clk 0:02:55]}  Nf6 {[%clk 0:03:00]} 5. Nc3 {[%clk 0:02:56]}  a6 {[%clk 0:03:00]} 6. Bg5 {[%clk 0:02:56]}  Nbd7 {[%clk 0:02:59]} 7. Be3 {[%clk 0:02:56]}  b5 {[%clk 0:02:43]} 8. g4 {[%clk 0:02:55]}  Bb7 {[%clk 0:02:42]} 9. Bg2 {[%clk 0:02:54]}  h6 {[%clk 0:02:40]} 10. h4 {[%clk 0:02:54]}  Ne5 {[%clk 0:02:34]} 11. g5 {[%clk 0:02:52]}  hxg5 {[%clk 0:02:33]} 12. hxg5 {[%clk 0:02:53]}  Rxh1+ {[%clk 0:02:29]} 13. Bxh1 {[%clk 0:02:54]}  Nfd7 {[%clk 0:02:16]} 14. f4 {[%clk 0:02:41]}  Nc4 {[%clk 0:02:14]} 15. Bc1 {[%clk 0:02:42]}  Nc5 {[%clk 0:02:06]} 16. g6 {[%clk 0:02:29]}  b4 {[%clk 0:01:34]} 17. gxf7+ {[%clk 0:02:27]}  Kxf7 {[%clk 0:01:34]} 18. Qe2 {[%clk 0:02:08]}  Nb6 {[%clk 0:00:56]} 19. Nd5 {[%clk 0:02:04]}  e6 {[%clk 0:00:45]} 20. Qh5+ {[%clk 0:01:41]}  Kg8 {[%clk 0:00:43]} 21. Nxb6 {[%clk 0:01:39]}  Qxb6 {[%clk 0:00:43]} 22. Be3 {[%clk 0:01:38]}  Nxe4 {[%clk 0:00:31]} 23. O-O-O {[%clk 0:01:34]}  e5 {[%clk 0:00:18]} 24. fxe5 {[%clk 0:01:28]}  dxe5 {[%clk 0:00:18]} 25. Qxe5 {[%clk 0:01:28]}  Nf6 {[%clk 0:00:17]} 26. Bxb7 {[%clk 0:01:24]}  Qxb7 {[%clk 0:00:18]} 27. Ne6 {[%clk 0:01:21]}  Re8 {[%clk 0:00:16]} 28. Bg5 {[%clk 0:00:40]}  Qe7 {[%clk 0:00:09]} 29. Re1 {[%clk 0:00:40]}  Qf7 {[%clk 0:00:07]} 30. Bxf6 {[%clk 0:00:36]}  Qxf6 {[%clk 0:00:05]} 31. Qd5 {[%clk 0:00:36]}  Qf7 {[%clk 0:00:05]} 32. b3 {[%clk 0:00:33]}  Be7 {[%clk 0:00:06]} 33. Qc6 {[%clk 0:00:18]}  Bf6 {[%clk 0:00:05]} 34. Qxa6 {[%clk 0:00:18]}  Bc3 {[%clk 0:00:04]} 35. Re3 {[%clk 0:00:10]}  Qf6 {[%clk 0:00:04]} 36. Qe2 {[%clk 0:00:08]}  Qg6 {[%clk 0:00:03]} 37. Qd1 {[%clk 0:00:01]}  Rxe6 {[%clk 0:00:03]} 38. Qd8+ {[%clk 0:00:01]}  Kh7 {[%clk 0:00:03]} 39. Rh3+ {[%clk 0:00:01]}  Qh6+ {[%clk 0:00:03]} 40. Rxh6+ {[%clk 0:00:01]}  Rxh6 {[%clk 0:00:04]} 41. Qd3+ {[%clk 0:00:01]}  Kh8 {[%clk 0:00:04]} 42. Qe4 {[%clk 0:00:01]}  Rf6 {[%clk 0:00:02]} 0-1


[Site "https://www.chess.com"]

[Event "Titled Tuesday Blitz February 07 Early 2023"]
[White "Krzyzanowski, Marcin"]
[Black "Tarasova, Viktoriya"]
[WhiteFideId "1132199"]
[BlackFideId "4175840"]
[WhiteElo "2512"]
[BlackElo "2226"]
[Result "1-0"]
[Round "02"]
[TimeControl "180+2"]
[Date "2023.02.07"]
[WhiteClock "0:00:23"]
[BlackClock "0:00:11"]

1. Nf3 {[%clk 0:02:55]}  Nf6 {[%clk 0:02:58]} 2. g3 {[%clk 0:02:53]}  b6 {[%clk 0:02:58]} 3. Bg2 {[%clk 0:02:54]}  Bb7 {[%clk 0:02:58]} 4. O-O {[%clk 0:02:51]}  c5 {[%clk 0:02:58]} 5. c4 {[%clk 0:02:51]}  e6 {[%clk 0:02:58]} 6. Re1 {[%clk 0:02:48]}  Be7 {[%clk 0:02:55]} 7. Nc3 {[%clk 0:02:46]}  Nc6 {[%clk 0:02:49]} 8. e4 {[%clk 0:02:41]}  e5 {[%clk 0:02:49]} 9. Nd5 {[%clk 0:02:40]}  d6 {[%clk 0:02:48]} 10. d3 {[%clk 0:02:40]}  O-O {[%clk 0:02:46]} 11. Be3 {[%clk 0:02:36]}  Nd4 {[%clk 0:02:46]} 12. Nxd4 {[%clk 0:02:35]}  cxd4 {[%clk 0:02:46]} 13. Bd2 {[%clk 0:02:34]}  Nxd5 {[%clk 0:02:45]} 14. exd5 {[%clk 0:02:23]}  Bc8 {[%clk 0:02:45]} 15. f4 {[%clk 0:02:22]}  Bf6 {[%clk 0:02:34]} 16. fxe5 {[%clk 0:02:06]}  dxe5 {[%clk 0:02:30]} 17. b4 {[%clk 0:02:04]}  Bf5 {[%clk 0:02:28]} 18. Qf3 {[%clk 0:02:02]}  Qd7 {[%clk 0:02:06]} 19. c5 {[%clk 0:01:59]}  bxc5 {[%clk 0:02:00]} 20. bxc5 {[%clk 0:01:59]}  Bg4 {[%clk 0:02:00]} 21. Qf1 {[%clk 0:01:59]}  Rab8 {[%clk 0:01:55]} 22. d6 {[%clk 0:01:55]}  Rb2 {[%clk 0:01:51]} 23. Ba5 {[%clk 0:01:30]}  Qe6 {[%clk 0:01:33]} 24. Bc7 {[%clk 0:01:16]}  Bg5 {[%clk 0:01:08]} 25. c6 {[%clk 0:01:07]}  Be3+ {[%clk 0:01:07]} 26. Kh1 {[%clk 0:01:07]}  Rf2 {[%clk 0:01:03]} 27. Qxf2 {[%clk 0:00:53]}  Bxf2 {[%clk 0:01:03]} 28. Rf1 {[%clk 0:00:53]}  Be3 {[%clk 0:01:00]} 29. d7 {[%clk 0:00:52]}  Bg5 {[%clk 0:00:56]} 30. Rae1 {[%clk 0:00:49]}  Bf6 {[%clk 0:00:43]} 31. Rc1 {[%clk 0:00:47]}  Bh3 {[%clk 0:00:41]} 32. Bxh3 {[%clk 0:00:47]}  Qxh3 {[%clk 0:00:40]} 33. Bd6 {[%clk 0:00:47]}  Bg5 {[%clk 0:00:17]} 34. Bxf8 {[%clk 0:00:44]}  Bxc1 {[%clk 0:00:17]} 35. Rxc1 {[%clk 0:00:40]}  Qg4 {[%clk 0:00:16]} 36. Rf1 {[%clk 0:00:24]}  Qh3 {[%clk 0:00:11]} 37. Kg1 {[%clk 0:00:23]} 1-0


[Site "https://www.chess.com"]

[Event "Titled Tuesday Blitz February 07 Early 2023"]
[White "Mestnikov, Aisen"]
[Black "Harsha Bharathakoti"]
[WhiteFideId "34130117"]
[BlackFideId "5078776"]
[WhiteElo "2078"]
[BlackElo "2602"]
[Result "0-1"]
[Round "02"]
[TimeControl "180+2"]
[Date "2023.02.07"]
[WhiteClock "0:00:26"]
[BlackClock "0:02:28"]

1. d4 {[%clk 0:02:59]}  f5 {[%clk 0:02:59]} 2. c4 {[%clk 0:02:59]}  Nf6 {[%clk 0:03:00]} 3. Nf3 {[%clk 0:02:59]}  g6 {[%clk 0:02:59]} 4. g3 {[%clk 0:03:00]}  Bg7 {[%clk 0:03:00]} 5. Bg2 {[%clk 0:03:01]}  d6 {[%clk 0:03:00]} 6. O-O {[%clk 0:03:02]}  O-O {[%clk 0:03:01]} 7. d5 {[%clk 0:03:02]}  Na6 {[%clk 0:02:59]} 8. Nd4 {[%clk 0:03:01]}  Bd7 {[%clk 0:02:58]} 9. Nc3 {[%clk 0:03:01]}  Rc8 {[%clk 0:02:59]} 10. a3 {[%clk 0:03:00]}  Nc5 {[%clk 0:02:57]} 11. b4 {[%clk 0:02:59]}  Nce4 {[%clk 0:02:57]} 12. Nxe4 {[%clk 0:02:55]}  Nxe4 {[%clk 0:02:58]} 13. Bb2 {[%clk 0:02:55]}  c6 {[%clk 0:02:59]} 14. dxc6 {[%clk 0:02:54]}  bxc6 {[%clk 0:02:59]} 15. Bxe4 {[%clk 0:02:08]}  fxe4 {[%clk 0:02:59]} 16. c5 {[%clk 0:02:07]}  e5 {[%clk 0:02:46]} 17. Qb3+ {[%clk 0:01:59]}  d5 {[%clk 0:02:46]} 18. Nc2 {[%clk 0:01:52]}  Bh3 {[%clk 0:02:47]} 19. Rfd1 {[%clk 0:01:51]}  Qf6 {[%clk 0:02:46]} 20. Qe3 {[%clk 0:01:12]}  d4 {[%clk 0:02:45]} 21. Nxd4 {[%clk 0:00:38]}  exd4 {[%clk 0:02:45]} 22. Bxd4 {[%clk 0:00:39]}  Qf5 {[%clk 0:02:35]} 23. Bxg7 {[%clk 0:00:39]}  Kxg7 {[%clk 0:02:35]} 24. Rd6 {[%clk 0:00:35]}  Rc7 {[%clk 0:02:33]} 25. Ra2 {[%clk 0:00:26]}  Rcf7 {[%clk 0:02:32]} 26. Qd4+ {[%clk 0:00:26]}  Kg8 {[%clk 0:02:30]} 27. e3 {[%clk 0:00:26]}  Qf3 {[%clk 0:02:28]} 0-1


[Site "https://www.chess.com"]

[Event "Titled Tuesday Blitz February 07 Early 2023"]
[White "Murzin, Volodar"]
[Black "Gatterer, Florian"]
[WhiteFideId "44155573"]
[BlackFideId "811688"]
[WhiteElo "2604"]
[BlackElo "2170"]
[Result "1-0"]
[Round "02"]
[TimeControl "180+2"]
[Date "2023.02.07"]
[WhiteClock "0:00:55"]
[BlackClock "0:00:01"]

1. e4 {[%clk 0:03:00]}  c5 {[%clk 0:02:43]} 2. Nf3 {[%clk 0:02:59]}  e6 {[%clk 0:02:43]} 3. g3 {[%clk 0:02:59]}  Nc6 {[%clk 0:02:40]} 4. Bg2 {[%clk 0:02:59]}  Nf6 {[%clk 0:02:40]} 5. Qe2 {[%clk 0:02:58]}  e5 {[%clk 0:02:40]} 6. O-O {[%clk 0:02:58]}  Be7 {[%clk 0:02:41]} 7. Nc3 {[%clk 0:02:59]}  O-O {[%clk 0:02:40]} 8. Nd5 {[%clk 0:02:59]}  d6 {[%clk 0:02:39]} 9. c3 {[%clk 0:02:58]}  Be6 {[%clk 0:02:30]} 10. Ne1 {[%clk 0:02:58]}  Qd7 {[%clk 0:02:17]} 11. Nc2 {[%clk 0:02:58]}  Bh3 {[%clk 0:02:16]} 12. d3 {[%clk 0:02:39]}  Bxg2 {[%clk 0:02:10]} 13. Kxg2 {[%clk 0:02:40]}  Rae8 {[%clk 0:01:59]} 14. Nce3 {[%clk 0:02:39]}  Bd8 {[%clk 0:01:54]} 15. Nxf6+ {[%clk 0:02:33]}  Bxf6 {[%clk 0:01:53]} 16. f4 {[%clk 0:02:31]}  exf4 {[%clk 0:01:45]} 17. gxf4 {[%clk 0:02:32]}  Bd8 {[%clk 0:01:38]} 18. Qf3 {[%clk 0:02:22]}  Ne7 {[%clk 0:01:33]} 19. f5 {[%clk 0:02:19]}  f6 {[%clk 0:01:33]} 20. c4 {[%clk 0:02:14]}  b5 {[%clk 0:01:24]} 21. b3 {[%clk 0:02:14]}  bxc4 {[%clk 0:01:12]} 22. bxc4 {[%clk 0:02:15]}  Bc7 {[%clk 0:01:09]} 23. Bd2 {[%clk 0:02:09]}  Rb8 {[%clk 0:01:06]} 24. Rfb1 {[%clk 0:02:07]}  Rxb1 {[%clk 0:01:01]} 25. Rxb1 {[%clk 0:02:08]}  Rb8 {[%clk 0:01:02]} 26. Qd1 {[%clk 0:02:07]}  Qc8 {[%clk 0:00:57]} 27. Rxb8 {[%clk 0:02:04]}  Qxb8 {[%clk 0:00:56]} 28. Qa4 {[%clk 0:02:04]}  Kf7 {[%clk 0:00:50]} 29. Qc2 {[%clk 0:02:02]}  Qb7 {[%clk 0:00:45]} 30. Bc3 {[%clk 0:02:01]}  Qa6 {[%clk 0:00:37]} 31. Kf3 {[%clk 0:01:56]}  Kf8 {[%clk 0:00:33]} 32. h4 {[%clk 0:01:56]}  Kf7 {[%clk 0:00:32]} 33. h5 {[%clk 0:01:56]}  h6 {[%clk 0:00:33]} 34. Ng2 {[%clk 0:01:53]}  Qa3 {[%clk 0:00:25]} 35. Nf4 {[%clk 0:01:52]}  Ba5 {[%clk 0:00:24]} 36. Ba1 {[%clk 0:01:41]}  Qb4 {[%clk 0:00:17]} 37. Ng2 {[%clk 0:01:33]}  Qa3 {[%clk 0:00:15]} 38. Ne3 {[%clk 0:01:27]}  Qb4 {[%clk 0:00:14]} 39. Qc1 {[%clk 0:01:20]}  Qa4 {[%clk 0:00:12]} 40. Qb1 {[%clk 0:01:20]}  Qb4 {[%clk 0:00:11]} 41. Qxb4 {[%clk 0:01:20]}  Bxb4 {[%clk 0:00:11]} 42. Ke2 {[%clk 0:01:15]}  Ke8 {[%clk 0:00:11]} 43. Kd1 {[%clk 0:01:16]}  Kd7 {[%clk 0:00:11]} 44. Kc2 {[%clk 0:01:16]}  Be1 {[%clk 0:00:11]} 45. Ng2 {[%clk 0:01:16]}  Bg3 {[%clk 0:00:11]} 46. Bc3 {[%clk 0:01:17]}  Kc6 {[%clk 0:00:10]} 47. Ba5 {[%clk 0:01:15]}  Kd7 {[%clk 0:00:10]} 48. Kd2 {[%clk 0:01:13]}  Nc6 {[%clk 0:00:10]} 49. Bc3 {[%clk 0:01:11]}  a6 {[%clk 0:00:10]} 50. Ke3 {[%clk 0:01:06]}  Ke7 {[%clk 0:00:10]} 51. Ke2 {[%clk 0:01:03]}  Be5 {[%clk 0:00:10]} 52. Ke3 {[%clk 0:01:03]}  Bxc3 {[%clk 0:00:09]} 53. Nf4 {[%clk 0:01:02]}  Bd4+ {[%clk 0:00:08]} 54. Kd2 {[%clk 0:01:02]}  Kf7 {[%clk 0:00:08]} 55. Ne6 {[%clk 0:01:01]}  Ne7 {[%clk 0:00:07]} 56. Nc7 {[%clk 0:01:00]}  a5 {[%clk 0:00:02]} 57. Kc2 {[%clk 0:01:00]}  Be5 {[%clk 0:00:01]} 58. Kb3 {[%clk 0:01:00]}  Bf4 {[%clk 0:00:02]} 59. Ka4 {[%clk 0:00:59]}  Bd2 {[%clk 0:00:03]} 60. Kb5 {[%clk 0:00:58]}  Be1 {[%clk 0:00:03]} 61. a4 {[%clk 0:00:58]}  Bd2 {[%clk 0:00:03]} 62. Kb6 {[%clk 0:00:58]}  Be1 {[%clk 0:00:04]} 63. Nb5 {[%clk 0:00:59]}  Bd2 {[%clk 0:00:05]} 64. Nxd6+ {[%clk 0:00:59]}  Kf8 {[%clk 0:00:04]} 65. Nb7 {[%clk 0:01:00]}  Bb4 {[%clk 0:00:04]} 66. Nxa5 {[%clk 0:00:58]}  Ke8 {[%clk 0:00:05]} 67. Nb7 {[%clk 0:00:57]}  Kd7 {[%clk 0:00:05]} 68. a5 {[%clk 0:00:58]}  Bxa5+ {[%clk 0:00:03]} 69. Nxa5 {[%clk 0:00:57]}  Kd6 {[%clk 0:00:03]} 70. Nb7+ {[%clk 0:00:56]}  Ke5 {[%clk 0:00:02]} 71. Kxc5 {[%clk 0:00:56]}  Kf4 {[%clk 0:00:02]} 72. Kd6 {[%clk 0:00:56]}  Nc8+ {[%clk 0:00:01]} 73. Ke6 {[%clk 0:00:54]}  Nb6 {[%clk 0:00:01]} 74. c5 {[%clk 0:00:55]} 1-0


[Site "https://www.chess.com"]

[Event "Titled Tuesday Blitz February 07 Early 2023"]
[White "Sanchez, Robert"]
[Black "Lobanov, Sergei"]
[WhiteFideId "2034360"]
[BlackFideId "24183750"]
[WhiteElo "1966"]
[BlackElo "2536"]
[Result "0-1"]
[Round "02"]
[TimeControl "180+2"]
[Date "2023.02.07"]
[WhiteClock "0:00:08"]
[BlackClock "0:00:26"]

1. e4 {[%clk 0:03:00]}  e5 {[%clk 0:03:00]} 2. Nf3 {[%clk 0:03:01]}  Nc6 {[%clk 0:03:00]} 3. Bb5 {[%clk 0:03:01]}  a6 {[%clk 0:03:00]} 4. Ba4 {[%clk 0:03:01]}  Bc5 {[%clk 0:03:01]} 5. c3 {[%clk 0:02:59]}  Nge7 {[%clk 0:03:00]} 6. O-O {[%clk 0:03:00]}  Ba7 {[%clk 0:03:00]} 7. d4 {[%clk 0:03:00]}  Ng6 {[%clk 0:03:01]} 8. Bg5 {[%clk 0:02:53]}  f6 {[%clk 0:03:01]} 9. Be3 {[%clk 0:02:50]}  O-O {[%clk 0:03:02]} 10. Na3 {[%clk 0:02:46]}  d6 {[%clk 0:03:00]} 11. h3 {[%clk 0:02:45]}  Kh8 {[%clk 0:02:59]} 12. Rc1 {[%clk 0:02:38]}  Bd7 {[%clk 0:02:48]} 13. Re1 {[%clk 0:02:36]}  Qe8 {[%clk 0:02:48]} 14. Bc2 {[%clk 0:02:22]}  Qc8 {[%clk 0:02:12]} 15. Nh2 {[%clk 0:02:10]}  f5 {[%clk 0:02:08]} 16. exf5 {[%clk 0:02:01]}  Bxf5 {[%clk 0:02:09]} 17. Bxf5 {[%clk 0:01:57]}  Qxf5 {[%clk 0:02:10]} 18. Nc2 {[%clk 0:01:52]}  Rae8 {[%clk 0:02:02]} 19. d5 {[%clk 0:01:28]}  Bxe3 {[%clk 0:01:57]} 20. fxe3 {[%clk 0:01:28]}  Nce7 {[%clk 0:01:53]} 21. Qe2 {[%clk 0:01:16]}  Qe4 {[%clk 0:01:38]} 22. c4 {[%clk 0:01:14]}  b5 {[%clk 0:01:36]} 23. b3 {[%clk 0:01:12]}  bxc4 {[%clk 0:01:36]} 24. bxc4 {[%clk 0:01:12]}  Rb8 {[%clk 0:01:36]} 25. Rb1 {[%clk 0:01:03]}  Nf4 {[%clk 0:01:25]} 26. Qd2 {[%clk 0:00:50]}  Nd3 {[%clk 0:01:22]} 27. Rxb8 {[%clk 0:00:47]}  Rxb8 {[%clk 0:01:23]} 28. Rf1 {[%clk 0:00:40]}  Qxc4 {[%clk 0:01:23]} 29. Ne1 {[%clk 0:00:20]}  Nxe1 {[%clk 0:01:18]} 30. Qxe1 {[%clk 0:00:21]}  Qxd5 {[%clk 0:01:12]} 31. Qh4 {[%clk 0:00:20]}  Ng6 {[%clk 0:00:59]} 32. Qg5 {[%clk 0:00:20]}  Qe4 {[%clk 0:00:57]} 33. Ng4 {[%clk 0:00:18]}  Kg8 {[%clk 0:00:40]} 34. h4 {[%clk 0:00:17]}  h6 {[%clk 0:00:40]} 35. Qh5 {[%clk 0:00:15]}  Rb2 {[%clk 0:00:37]} 36. Rf2 {[%clk 0:00:12]}  Rxf2 {[%clk 0:00:32]} 37. Kxf2 {[%clk 0:00:13]}  Kh7 {[%clk 0:00:25]} 38. Kg1 {[%clk 0:00:12]}  c5 {[%clk 0:00:25]} 39. Nh2 {[%clk 0:00:11]}  Qxe3+ {[%clk 0:00:25]} 40. Kf1 {[%clk 0:00:09]}  Qd3+ {[%clk 0:00:24]} 41. Kg1 {[%clk 0:00:09]}  Qb1+ {[%clk 0:00:23]} 42. Kf2 {[%clk 0:00:08]}  Qxa2+ {[%clk 0:00:24]} 43. Kg1 {[%clk 0:00:08]}  Qxg2+ {[%clk 0:00:25]} 44. Kxg2 {[%clk 0:00:08]}  Nf4+ {[%clk 0:00:26]} 0-1


[Site "https://www.chess.com"]